[Event "Early-Titled-Tuesday-Blitz-July-09-2024"]
[Site "Chess.com"]
[Date "2024.07.09"]
[Round "2"]
[White "santosalberto1987"]
[Black "dealshark"]
[Result "1-0"]
[WhiteElo "2596"]
[BlackElo "2373"]
[TimeControl "180+1"]
[EndTime "8:17:11 PDT"]
[Termination "santosalberto1987 won by resignation"]

1. e4 {[%clk 0:03:00.9]} 1... c5 {[%clk 0:03:00]} 2. Nf3 {[%clk 0:02:48.2]} 2...
d6 {[%clk 0:03:00.1]} 3. Bb5+ {[%clk 0:02:41.9]} 3... Nd7 {[%clk 0:02:56]} 4. d4
{[%clk 0:01:50.2]} 4... cxd4 {[%clk 0:02:56]} 5. Qxd4 {[%clk 0:01:51]} 5... a6
{[%clk 0:02:32.2]} 6. Bxd7+ {[%clk 0:01:37.4]} 6... Bxd7 {[%clk 0:02:31.6]} 7.
Nc3 {[%clk 0:01:38.2]} 7... Nf6 {[%clk 0:02:29.9]} 8. Bg5 {[%clk 0:00:39.5]}
8... e6 {[%clk 0:02:04]} 9. O-O-O {[%clk 0:00:37.8]} 9... Be7 {[%clk 0:01:59.5]}
10. e5 {[%clk 0:00:36.6]} 10... dxe5 {[%clk 0:01:53.8]} 11. Nxe5 {[%clk
0:00:37.5]} 11... Bb5 {[%clk 0:01:43.7]} 12. Nxb5 {[%clk 0:00:36.6]} 12... axb5
{[%clk 0:01:41.4]} 13. Qxd8+ {[%clk 0:00:37]} 13... Bxd8 {[%clk 0:01:33]} 14. a3
{[%clk 0:00:35.8]} 14... O-O {[%clk 0:01:32.2]} 15. Bxf6 {[%clk 0:00:32.7]}
15... Bxf6 {[%clk 0:01:32.1]} 16. Nd7 {[%clk 0:00:32.9]} 16... Rfd8 {[%clk
0:01:28.9]} 17. Nxf6+ {[%clk 0:00:32.9]} 17... gxf6 {[%clk 0:01:29.8]} 18. Rxd8+
{[%clk 0:00:33.5]} 18... Rxd8 {[%clk 0:01:30.7]} 19. Rd1 {[%clk 0:00:33.9]}
19... Rxd1+ {[%clk 0:01:17]} 20. Kxd1 {[%clk 0:00:34.8]} 20... Kf8 {[%clk
0:01:17.8]} 21. Kd2 {[%clk 0:00:35.2]} 21... Ke7 {[%clk 0:01:18.7]} 22. Kc3
{[%clk 0:00:33.8]} 22... Kd6 {[%clk 0:01:18.7]} 23. Kb4 {[%clk 0:00:34]} 23...
Kc6 {[%clk 0:01:19.1]} 24. a4 {[%clk 0:00:32.4]} 24... bxa4 {[%clk 0:01:19.3]}
25. Kxa4 {[%clk 0:00:33.3]} 25... Kc5 {[%clk 0:01:19.2]} 26. Kb3 {[%clk
0:00:32.1]} 26... Kd4 {[%clk 0:01:16.4]} 27. Kb4 {[%clk 0:00:31.9]} 27... e5
{[%clk 0:01:12.9]} 28. c4 {[%clk 0:00:30.8]} 28... e4 {[%clk 0:01:03.1]} 29. Kb5
{[%clk 0:00:29.9]} 29... f5 {[%clk 0:01:03.2]} 30. g3 {[%clk 0:00:30]} 30... Kd3
{[%clk 0:00:54.2]} 31. b4 {[%clk 0:00:28.1]} 31... Ke2 {[%clk 0:00:53.9]} 32.
Kb6 {[%clk 0:00:26.4]} 32... Kxf2 {[%clk 0:00:54.1]} 33. Kxb7 {[%clk 0:00:26.8]}
33... e3 {[%clk 0:00:54.5]} 34. c5 {[%clk 0:00:27.6]} 34... e2 {[%clk 0:00:55]}
35. c6 {[%clk 0:00:28.1]} 35... e1=Q {[%clk 0:00:55.3]} 36. b5 {[%clk
0:00:28.8]} 36... Qe6 {[%clk 0:00:25.1]} 37. c7 {[%clk 0:00:27.5]} 37... Qd7
{[%clk 0:00:24.1]} 38. b6 {[%clk 0:00:26.7]} 38... Kg2 {[%clk 0:00:23.1]} 39.
Kb8 {[%clk 0:00:26.7]} 39... Kxh2 {[%clk 0:00:20.5]} 40. c8=Q {[%clk 0:00:26.6]}
40... Qd6+ {[%clk 0:00:21.2]} 41. Qc7 {[%clk 0:00:26.4]} 41... Qd2 {[%clk
0:00:20.6]} 42. b7 {[%clk 0:00:26.1]} 1-0

[Event "Early-Titled-Tuesday-Blitz-July-09-2024"]
[Site "Chess.com"]
[Date "2024.07.09"]
[Round "2"]
[White "IC3S2"]
[Black "Yan_Dyomin2010"]
[Result "0-1"]
[WhiteElo "2537"]
[BlackElo "2764"]
[TimeControl "180+1"]
[EndTime "8:17:12 PDT"]
[Termination "Yan_Dyomin2010 won by resignation"]

1. e4 {[%clk 0:03:00.9]} 1... c5 {[%clk 0:02:59.7]} 2. Nc3 {[%clk 0:03:00.5]}
2... Nc6 {[%clk 0:02:59.3]} 3. Bb5 {[%clk 0:03:00]} 3... Nd4 {[%clk 0:02:58.9]}
4. Nf3 {[%clk 0:03:00.5]} 4... e6 {[%clk 0:02:56]} 5. O-O {[%clk 0:02:59.9]}
5... a6 {[%clk 0:02:53.3]} 6. Bd3 {[%clk 0:02:59]} 6... Ne7 {[%clk 0:02:50.3]}
7. Nxd4 {[%clk 0:02:53.5]} 7... cxd4 {[%clk 0:02:50.4]} 8. Ne2 {[%clk
0:02:54.3]} 8... Nc6 {[%clk 0:02:50.7]} 9. c3 {[%clk 0:02:53.2]} 9... dxc3
{[%clk 0:02:50.1]} 10. bxc3 {[%clk 0:02:53.3]} 10... Be7 {[%clk 0:02:48.8]} 11.
Bc2 {[%clk 0:02:53]} 11... d5 {[%clk 0:02:46.6]} 12. d4 {[%clk 0:02:51.8]} 12...
dxe4 {[%clk 0:02:45.6]} 13. Bxe4 {[%clk 0:02:52.7]} 13... O-O {[%clk 0:02:44.8]}
14. Rb1 {[%clk 0:02:50.3]} 14... Bd6 {[%clk 0:02:39.7]} 15. Qd3 {[%clk 0:02:19]}
15... h6 {[%clk 0:02:27.9]} 16. h3 {[%clk 0:02:16.8]} 16... Qc7 {[%clk
0:02:26.5]} 17. Be3 {[%clk 0:02:00.2]} 17... Bd7 {[%clk 0:02:25.2]} 18. Qd2
{[%clk 0:01:54.8]} 18... f5 {[%clk 0:02:20.7]} 19. Bd3 {[%clk 0:01:53]} 19... f4
{[%clk 0:02:19.5]} 20. Bc2 {[%clk 0:01:38.4]} 20... fxe3 {[%clk 0:02:18.2]} 21.
Qd3 {[%clk 0:01:38.8]} 21... exf2+ {[%clk 0:02:04.9]} 22. Rxf2 {[%clk
0:01:37.7]} 22... Bh2+ {[%clk 0:02:05.1]} 23. Kf1 {[%clk 0:01:26.7]} 23... Rxf2+
{[%clk 0:02:05.5]} 24. Kxf2 {[%clk 0:01:27.2]} 24... Rf8+ {[%clk 0:02:05.2]} 25.
Ke1 {[%clk 0:01:26.1]} 25... Rf6 {[%clk 0:02:02.6]} 26. g3 {[%clk 0:01:19.6]}
26... Ne7 {[%clk 0:01:58.6]} 27. Kd2 {[%clk 0:01:07.7]} 27... Nf5 {[%clk
0:01:54.2]} 28. d5 {[%clk 0:00:51.3]} 28... Bxg3 {[%clk 0:01:48.5]} 29. Nxg3
{[%clk 0:00:28.2]} 29... Qf4+ {[%clk 0:01:46.8]} 30. Kd1 {[%clk 0:00:23.6]}
30... Nxg3 {[%clk 0:01:44.2]} 31. Rxb7 {[%clk 0:00:21.3]} 31... Qf1+ {[%clk
0:01:31.1]} 32. Qxf1 {[%clk 0:00:21.6]} 32... Rxf1+ {[%clk 0:01:31.8]} 33. Kd2
{[%clk 0:00:22.1]} 33... Rf2+ {[%clk 0:01:28.5]} 34. Kd1 {[%clk 0:00:18.6]}
34... Rxc2 {[%clk 0:01:25.4]} 35. Kxc2 {[%clk 0:00:17.4]} 35... Ba4+ {[%clk
0:01:25.3]} 36. Kb2 {[%clk 0:00:17.2]} 36... exd5 {[%clk 0:01:25.6]} 37. Ka3
{[%clk 0:00:16.5]} 37... Bb5 {[%clk 0:01:25.6]} 38. Kb4 {[%clk 0:00:17.2]} 38...
Bc4 {[%clk 0:01:25.7]} 39. a4 {[%clk 0:00:17]} 39... Ne2 {[%clk 0:01:23.7]} 40.
h4 {[%clk 0:00:15.3]} 40... Nf4 {[%clk 0:01:23.4]} 41. Kc5 {[%clk 0:00:12.6]}
41... Ng6 {[%clk 0:01:22.3]} 42. a5 {[%clk 0:00:08.1]} 42... Nxh4 {[%clk
0:01:22]} 43. Kd6 {[%clk 0:00:07.9]} 43... Nf5+ {[%clk 0:01:20.6]} 44. Ke5
{[%clk 0:00:08]} 44... Ne3 {[%clk 0:01:19.4]} 45. Re7 {[%clk 0:00:05.1]} 45...
Nd1 {[%clk 0:01:17.9]} 46. Ke6 {[%clk 0:00:01.6]} 46... d4+ {[%clk 0:01:17]} 47.
Ke5 {[%clk 0:00:01.9]} 47... dxc3 {[%clk 0:01:16.2]} 48. Rc7 {[%clk 0:00:02.3]}
48... Bb3 {[%clk 0:01:16.3]} 49. Kd4 {[%clk 0:00:02.7]} 49... c2 {[%clk
0:01:16.4]} 50. Kd3 {[%clk 0:00:03.3]} 50... Nf2+ {[%clk 0:01:16.3]} 51. Kd2
{[%clk 0:00:03.4]} 51... Ne4+ {[%clk 0:01:16.7]} 52. Kc1 {[%clk 0:00:03.4]}
52... Ba4 {[%clk 0:01:16]} 53. Rc3 {[%clk 0:00:03.4]} 53... Bb5 {[%clk
0:01:14.9]} 54. Rc7 {[%clk 0:00:02.3]} 54... Nd6 {[%clk 0:01:15]} 55. Rc3 {[%clk
0:00:02]} 55... Nc4 {[%clk 0:01:14.9]} 56. Rxc2 {[%clk 0:00:02.3]} 56... Nxa5
{[%clk 0:01:14.9]} 57. Rg2 {[%clk 0:00:02.7]} 57... Nc6 {[%clk 0:01:15.2]} 58.
Kd2 {[%clk 0:00:03.4]} 58... Ne5 {[%clk 0:01:14.9]} 59. Ke3 {[%clk 0:00:03.8]}
59... g5 {[%clk 0:01:14.8]} 60. Ke4 {[%clk 0:00:03.8]} 60... Bc6+ {[%clk
0:01:14.6]} 0-1

[Event "Early-Titled-Tuesday-Blitz-July-09-2024"]
[Site "Chess.com"]
[Date "2024.07.09"]
[Round "2"]
[White "Massakru"]
[Black "GoltsevDmitry2000"]
[Result "0-1"]
[WhiteElo "2397"]
[BlackElo "2729"]
[TimeControl "180+1"]
[EndTime "8:17:12 PDT"]
[Termination "GoltsevDmitry2000 won by resignation"]

1. e4 {[%clk 0:03:00.9]} 1... e6 {[%clk 0:02:44.4]} 2. d4 {[%clk 0:03:00.6]}
2... d5 {[%clk 0:02:44.6]} 3. Nc3 {[%clk 0:03:01.2]} 3... c5 {[%clk 0:02:44.4]}
4. dxc5 {[%clk 0:02:52.2]} 4... d4 {[%clk 0:02:40.6]} 5. Nb5 {[%clk 0:02:51.6]}
5... Bxc5 {[%clk 0:02:38.6]} 6. Nf3 {[%clk 0:02:49.1]} 6... Nc6 {[%clk
0:02:28.9]} 7. c3 {[%clk 0:02:45.2]} 7... dxc3 {[%clk 0:02:12.5]} 8. Qxd8+
{[%clk 0:02:44.3]} 8... Kxd8 {[%clk 0:02:13.4]} 9. Nxc3 {[%clk 0:02:37.4]} 9...
h6 {[%clk 0:02:10.8]} 10. Bd2 {[%clk 0:02:30.2]} 10... a6 {[%clk 0:02:00.3]} 11.
O-O-O {[%clk 0:02:29.6]} 11... Ke7 {[%clk 0:02:00.6]} 12. Be3 {[%clk 0:02:06]}
12... Bxe3+ {[%clk 0:01:59.8]} 13. fxe3 {[%clk 0:02:06.9]} 13... Nf6 {[%clk
0:02:00.3]} 14. h3 {[%clk 0:02:02.9]} 14... b5 {[%clk 0:02:00.3]} 15. a3 {[%clk
0:01:50.2]} 15... Bb7 {[%clk 0:02:00.3]} 16. Bd3 {[%clk 0:01:49.4]} 16... Rac8
{[%clk 0:01:50.3]} 17. Rhf1 {[%clk 0:01:38.1]} 17... b4 {[%clk 0:01:40.7]} 18.
axb4 {[%clk 0:01:37.8]} 18... Nxb4 {[%clk 0:01:40.8]} 19. Bb1 {[%clk 0:01:36.8]}
19... Nxe4 {[%clk 0:01:26.5]} 20. Ne5 {[%clk 0:01:19.1]} 20... Nf6 {[%clk
0:01:23.7]} 21. Rd4 {[%clk 0:00:48.8]} 21... Nbd5 {[%clk 0:00:55.7]} 22. Kd2
{[%clk 0:00:42.1]} 22... Rhd8 {[%clk 0:00:37.8]} 23. g4 {[%clk 0:00:40.5]} 23...
Nxc3 {[%clk 0:00:30.8]} 24. bxc3 {[%clk 0:00:40.5]} 24... Bg2 {[%clk 0:00:31.3]}
25. Rg1 {[%clk 0:00:35.5]} 25... Bxh3 {[%clk 0:00:29.8]} 26. Bd3 {[%clk
0:00:32.9]} 26... a5 {[%clk 0:00:26]} 27. Rg3 {[%clk 0:00:32.1]} 27... Bf1
{[%clk 0:00:23.4]} 28. Bxf1 {[%clk 0:00:31.5]} 28... Ne4+ {[%clk 0:00:23.2]} 29.
Ke1 {[%clk 0:00:25.9]} 29... Nxg3 {[%clk 0:00:20.1]} 30. Bb5 {[%clk 0:00:24.8]}
30... Rxd4 {[%clk 0:00:19.7]} 31. cxd4 {[%clk 0:00:24.2]} 31... Ra8 {[%clk
0:00:15.1]} 32. Bc6 {[%clk 0:00:23.7]} 32... Ra6 {[%clk 0:00:13.6]} 33. Ba4
{[%clk 0:00:21.5]} 33... Ne4 {[%clk 0:00:12.5]} 34. Bb5 {[%clk 0:00:16.7]} 34...
Rb6 {[%clk 0:00:12.2]} 35. Nc6+ {[%clk 0:00:12.3]} 35... Kd6 {[%clk 0:00:11.6]}
36. Ba4 {[%clk 0:00:12.8]} 36... Rxc6 {[%clk 0:00:11.8]} 0-1

[Event "Early-Titled-Tuesday-Blitz-July-09-2024"]
[Site "Chess.com"]
[Date "2024.07.09"]
[Round "2"]
[White "mind1mover"]
[Black "PapaieDudu"]
[Result "1-0"]
[WhiteElo "2807"]
[BlackElo "2414"]
[TimeControl "180+1"]
[EndTime "8:17:12 PDT"]
[Termination "mind1mover won on time"]

1. c4 {[%clk 0:02:58.6]} 1... e6 {[%clk 0:02:59.4]} 2. Nc3 {[%clk 0:02:56.3]}
2... d5 {[%clk 0:02:58.9]} 3. e3 {[%clk 0:02:54.1]} 3... Nf6 {[%clk 0:02:56.4]}
4. Nf3 {[%clk 0:02:53.2]} 4... Be7 {[%clk 0:02:52.2]} 5. b3 {[%clk 0:02:52.1]}
5... O-O {[%clk 0:02:51.4]} 6. Bb2 {[%clk 0:02:51.4]} 6... b6 {[%clk 0:02:45.2]}
7. cxd5 {[%clk 0:02:46.1]} 7... exd5 {[%clk 0:02:44.7]} 8. g3 {[%clk 0:02:43.6]}
8... Bb7 {[%clk 0:02:30.6]} 9. Bg2 {[%clk 0:02:43.6]} 9... c5 {[%clk 0:02:19.1]}
10. d4 {[%clk 0:02:40]} 10... Nc6 {[%clk 0:02:17.1]} 11. O-O {[%clk 0:02:38.1]}
11... Re8 {[%clk 0:02:16]} 12. Ne2 {[%clk 0:02:36.5]} 12... Ne4 {[%clk
0:02:10.9]} 13. dxc5 {[%clk 0:02:32.9]} 13... bxc5 {[%clk 0:02:10.2]} 14. Nf4
{[%clk 0:02:32.9]} 14... Bf6 {[%clk 0:02:04.3]} 15. Bxf6 {[%clk 0:02:27.9]}
15... Nxf6 {[%clk 0:02:04]} 16. Rc1 {[%clk 0:02:28.1]} 16... Qe7 {[%clk
0:01:56.9]} 17. Qc2 {[%clk 0:02:12.9]} 17... Nb4 {[%clk 0:01:31.2]} 18. Qxc5
{[%clk 0:02:08]} 18... Nxa2 {[%clk 0:01:23.3]} 19. Qxe7 {[%clk 0:01:57.6]} 19...
Rxe7 {[%clk 0:01:23]} 20. Ra1 {[%clk 0:01:54.4]} 20... Nc3 {[%clk 0:01:17.6]}
21. Nd4 {[%clk 0:01:48]} 21... Nce4 {[%clk 0:01:08.9]} 22. Rfc1 {[%clk
0:01:43.4]} 22... Rc8 {[%clk 0:00:59.2]} 23. Rxc8+ {[%clk 0:01:35.6]} 23... Bxc8
{[%clk 0:00:59.5]} 24. Nc6 {[%clk 0:01:34.9]} 24... Rd7 {[%clk 0:00:30]} 25.
Rxa7 {[%clk 0:01:27.3]} 25... Rxa7 {[%clk 0:00:28.2]} 26. Nxa7 {[%clk
0:01:28.2]} 26... Bb7 {[%clk 0:00:15.7]} 27. Nb5 {[%clk 0:01:25.9]} 27... g5
{[%clk 0:00:14.6]} 28. Ne2 {[%clk 0:01:21.8]} 28... Nd2 {[%clk 0:00:10]} 29.
Ned4 {[%clk 0:01:18.7]} 29... Nfe4 {[%clk 0:00:09.2]} 30. f3 {[%clk 0:01:15.6]}
30... Nc5 {[%clk 0:00:09.3]} 31. Nd6 {[%clk 0:01:11.7]} 31... Ba6 {[%clk
0:00:06]} 32. b4 {[%clk 0:01:12.1]} 32... Ne6 {[%clk 0:00:02.4]} 33. b5 {[%clk
0:01:11.4]} 33... Nxd4 {[%clk 0:00:02]} 34. exd4 {[%clk 0:01:12.3]} 34... Bxb5
{[%clk 0:00:01.9]} 35. Nxb5 {[%clk 0:01:13.2]} 35... Nb3 {[%clk 0:00:02.3]} 36.
Kf2 {[%clk 0:01:12.5]} 36... f5 {[%clk 0:00:02.4]} 37. Ke3 {[%clk 0:01:12.8]}
37... Kf7 {[%clk 0:00:02.4]} 38. f4 {[%clk 0:01:13.4]} 38... gxf4+ {[%clk
0:00:02.6]} 39. Kxf4 {[%clk 0:01:14]} 39... Ke6 {[%clk 0:00:03.5]} 40. Bh3
{[%clk 0:01:12.3]} 40... Nd2 {[%clk 0:00:03.1]} 41. Bxf5+ {[%clk 0:01:12.6]}
41... Kf6 {[%clk 0:00:03.3]} 42. Bxh7 {[%clk 0:01:12.6]} 42... Nc4 {[%clk
0:00:03.7]} 43. Nc3 {[%clk 0:01:12]} 43... Nb2 {[%clk 0:00:03.4]} 44. Nxd5+
{[%clk 0:01:11.3]} 44... Kg7 {[%clk 0:00:04.1]} 45. Be4 {[%clk 0:01:09.5]} 45...
Nd1 {[%clk 0:00:03.8]} 46. Bd3 {[%clk 0:01:04.3]} 46... Nf2 {[%clk 0:00:03.8]}
47. Bf1 {[%clk 0:01:02.5]} 47... Nd1 {[%clk 0:00:03.2]} 48. Kf3 {[%clk 0:01:01]}
48... Nb2 {[%clk 0:00:03]} 49. Bb5 {[%clk 0:01:01.5]} 1-0

[Event "Early-Titled-Tuesday-Blitz-July-09-2024"]
[Site "Chess.com"]
[Date "2024.07.09"]
[Round "2"]
[White "AlainBruxelles"]
[Black "bazar-wokzal"]
[Result "0-1"]
[WhiteElo "2263"]
[BlackElo "2585"]
[TimeControl "180+1"]
[EndTime "8:17:13 PDT"]
[Termination "bazar-wokzal won by resignation"]

1. d4 {[%clk 0:03:00.9]} 1... Nf6 {[%clk 0:02:59.7]} 2. c4 {[%clk 0:03:00.9]}
2... Nc6 {[%clk 0:02:59.5]} 3. Bg5 {[%clk 0:02:58.4]} 3... e5 {[%clk 0:02:56]}
4. d5 {[%clk 0:02:57.8]} 4... Bb4+ {[%clk 0:02:49.4]} 5. Nd2 {[%clk 0:02:54.8]}
5... Ne7 {[%clk 0:02:36.7]} 6. Nf3 {[%clk 0:02:40.5]} 6... Ng6 {[%clk
0:02:35.8]} 7. a3 {[%clk 0:02:34.9]} 7... Bxd2+ {[%clk 0:02:25.7]} 8. Nxd2
{[%clk 0:02:30.8]} 8... d6 {[%clk 0:02:23.4]} 9. e4 {[%clk 0:02:24.8]} 9... h6
{[%clk 0:02:22.1]} 10. Be3 {[%clk 0:02:23.8]} 10... Ng4 {[%clk 0:02:21.1]} 11.
Qe2 {[%clk 0:02:16.5]} 11... O-O {[%clk 0:02:16.8]} 12. h3 {[%clk 0:02:15.4]}
12... Nxe3 {[%clk 0:02:16.3]} 13. Qxe3 {[%clk 0:02:16]} 13... f5 {[%clk
0:02:13.9]} 14. exf5 {[%clk 0:02:15.8]} 14... Bxf5 {[%clk 0:02:13.2]} 15. Bd3
{[%clk 0:02:15.2]} 15... Nf4 {[%clk 0:02:10.5]} 16. Bf1 {[%clk 0:02:10.9]} 16...
Qd7 {[%clk 0:01:59.8]} 17. Ne4 {[%clk 0:01:47.7]} 17... c6 {[%clk 0:01:48.3]}
18. dxc6 {[%clk 0:01:33.1]} 18... bxc6 {[%clk 0:01:48.1]} 19. Rd1 {[%clk
0:01:31.5]} 19... d5 {[%clk 0:01:43.3]} 20. g3 {[%clk 0:01:20.4]} 20... Nxh3
{[%clk 0:01:30.7]} 21. Bxh3 {[%clk 0:01:17.7]} 21... Bxh3 {[%clk 0:01:30.3]} 22.
cxd5 {[%clk 0:01:11.6]} 22... cxd5 {[%clk 0:01:30.3]} 23. Nc5 {[%clk 0:01:10]}
23... Qg4 {[%clk 0:01:16.2]} 24. Rxd5 {[%clk 0:01:00.5]} 24... Bg2 {[%clk
0:01:03.7]} 25. Rh4 {[%clk 0:00:58.4]} 25... Qxh4 {[%clk 0:00:49.3]} 26. gxh4
{[%clk 0:00:57]} 26... Bxd5 {[%clk 0:00:49.4]} 27. b4 {[%clk 0:00:49.2]} 27...
Rf3 {[%clk 0:00:42.3]} 28. Qxe5 {[%clk 0:00:46.7]} 28... Bf7 {[%clk 0:00:42.1]}
29. Kf1 {[%clk 0:00:36.4]} 29... Rxa3 {[%clk 0:00:35.9]} 30. Kg2 {[%clk
0:00:24.2]} 30... Rd8 {[%clk 0:00:24.6]} 31. Qc7 {[%clk 0:00:20.2]} 31... Bd5+
{[%clk 0:00:21.6]} 32. Kh2 {[%clk 0:00:18.9]} 32... Rf8 {[%clk 0:00:21.1]} 33.
Qd6 {[%clk 0:00:05.6]} 33... Rxf2+ {[%clk 0:00:19.3]} 0-1

[Event "Early-Titled-Tuesday-Blitz-July-09-2024"]
[Site "Chess.com"]
[Date "2024.07.09"]
[Round "2"]
[White "Byniolus"]
[Black "AmbartsumianTyhran2012"]
[Result "1-0"]
[WhiteElo "2802"]
[BlackElo "2565"]
[TimeControl "180+1"]
[EndTime "8:17:15 PDT"]
[Termination "Byniolus won on time"]

1. d4 {[%clk 0:03:00.9]} 1... Nf6 {[%clk 0:02:52.9]} 2. Nf3 {[%clk 0:03:00.9]}
2... g6 {[%clk 0:02:49]} 3. Bf4 {[%clk 0:03:00.8]} 3... Bg7 {[%clk 0:02:48.2]}
4. e3 {[%clk 0:03:01.1]} 4... O-O {[%clk 0:02:47.3]} 5. Be2 {[%clk 0:03:01.2]}
5... d6 {[%clk 0:02:40.9]} 6. h3 {[%clk 0:03:00.9]} 6... b6 {[%clk 0:02:40]} 7.
O-O {[%clk 0:02:59.7]} 7... Bb7 {[%clk 0:02:38.5]} 8. a4 {[%clk 0:02:59.3]} 8...
a5 {[%clk 0:02:32.7]} 9. c3 {[%clk 0:02:57.4]} 9... Nbd7 {[%clk 0:02:26.3]} 10.
Bh2 {[%clk 0:02:53.1]} 10... Ne4 {[%clk 0:02:25.5]} 11. Na3 {[%clk 0:02:47.4]}
11... f5 {[%clk 0:02:20.2]} 12. Nb5 {[%clk 0:02:40.4]} 12... Kh8 {[%clk
0:02:01.7]} 13. Qb3 {[%clk 0:02:27.8]} 13... Ndf6 {[%clk 0:01:54.6]} 14. Rfd1
{[%clk 0:02:25.2]} 14... Rc8 {[%clk 0:01:45.4]} 15. Ne1 {[%clk 0:02:00.7]} 15...
Qe8 {[%clk 0:01:25.1]} 16. Bc4 {[%clk 0:01:54]} 16... c6 {[%clk 0:00:51.6]} 17.
Na3 {[%clk 0:01:46]} 17... d5 {[%clk 0:00:51.5]} 18. Bf1 {[%clk 0:01:42.5]}
18... Qd8 {[%clk 0:00:49.6]} 19. c4 {[%clk 0:01:35.5]} 19... e6 {[%clk
0:00:46.2]} 20. Rac1 {[%clk 0:01:32.7]} 20... Qe7 {[%clk 0:00:20.7]} 21. Qxb6
{[%clk 0:01:28.3]} 21... g5 {[%clk 0:00:15.3]} 22. f3 {[%clk 0:01:20.8]} 22...
g4 {[%clk 0:00:13.1]} 23. fxe4 {[%clk 0:01:14.8]} 23... Nxe4 {[%clk 0:00:14]}
24. Bf4 {[%clk 0:01:01.6]} 24... h5 {[%clk 0:00:05.5]} 25. Nd3 {[%clk
0:00:53.6]} 25... gxh3 {[%clk 0:00:03.5]} 26. gxh3 {[%clk 0:00:53.9]} 26... Bf6
{[%clk 0:00:04]} 27. Kh2 {[%clk 0:00:51.6]} 27... Rg8 {[%clk 0:00:03.2]} 28. Bg2
{[%clk 0:00:52.3]} 28... h4 {[%clk 0:00:02.2]} 29. Bxe4 {[%clk 0:00:49.4]} 29...
fxe4 {[%clk 0:00:01.9]} 30. Ne5 {[%clk 0:00:50.1]} 30... Rg3 {[%clk 0:00:02.4]}
31. Bxg3 {[%clk 0:00:48.1]} 31... hxg3+ {[%clk 0:00:03.3]} 32. Kg2 {[%clk
0:00:49]} 32... Rg8 {[%clk 0:00:02.5]} 33. Rf1 {[%clk 0:00:46.8]} 33... Bxe5
{[%clk 0:00:01.8]} 34. dxe5 {[%clk 0:00:47.6]} 34... Qh7 {[%clk 0:00:01.6]} 35.
Rf4 {[%clk 0:00:40.7]} 35... Qh5 {[%clk 0:00:01.6]} 36. Rc2 {[%clk 0:00:32.3]}
36... Qg5 {[%clk 0:00:01]} 37. Qxb7 {[%clk 0:00:29.3]} 37... d4 {[%clk
0:00:01.6]} 38. Qf7 {[%clk 0:00:24.8]} 1-0

[Event "Early-Titled-Tuesday-Blitz-July-09-2024"]
[Site "Chess.com"]
[Date "2024.07.09"]
[Round "2"]
[White "Ranindu2003"]
[Black "KorolDimitriy75"]
[Result "1-0"]
[WhiteElo "2672"]
[BlackElo "2401"]
[TimeControl "180+1"]
[EndTime "8:17:15 PDT"]
[Termination "Ranindu2003 won on time"]

1. Nf3 {[%clk 0:02:49.6]} 1... c5 {[%clk 0:03:00.1]} 2. e3 {[%clk 0:02:47.1]}
2... g6 {[%clk 0:03:00.2]} 3. d4 {[%clk 0:02:45.7]} 3... Nf6 {[%clk 0:03:00.4]}
4. b3 {[%clk 0:02:44.9]} 4... Bg7 {[%clk 0:02:58.2]} 5. Bb2 {[%clk 0:02:45.5]}
5... O-O {[%clk 0:02:48.3]} 6. Bd3 {[%clk 0:02:37]} 6... d5 {[%clk 0:02:41.6]}
7. Nbd2 {[%clk 0:02:29.7]} 7... Nc6 {[%clk 0:02:23.4]} 8. O-O {[%clk 0:02:25.7]}
8... cxd4 {[%clk 0:02:01.7]} 9. exd4 {[%clk 0:02:18.2]} 9... b6 {[%clk
0:02:00.3]} 10. Ne5 {[%clk 0:02:14.3]} 10... Bb7 {[%clk 0:02:00.1]} 11. Re1
{[%clk 0:02:13.3]} 11... Rc8 {[%clk 0:01:58.5]} 12. a3 {[%clk 0:02:12.5]} 12...
Nxe5 {[%clk 0:01:30.8]} 13. dxe5 {[%clk 0:01:58.3]} 13... Ne4 {[%clk 0:01:31.1]}
14. Nf3 {[%clk 0:01:50.6]} 14... Qc7 {[%clk 0:01:01.3]} 15. c4 {[%clk
0:01:47.4]} 15... Rfd8 {[%clk 0:00:28.2]} 16. Qe2 {[%clk 0:01:45.2]} 16... Nc5
{[%clk 0:00:15.7]} 17. Bc2 {[%clk 0:01:41.6]} 17... dxc4 {[%clk 0:00:14.4]} 18.
bxc4 {[%clk 0:01:42.5]} 18... Ne6 {[%clk 0:00:12.8]} 19. Qe3 {[%clk 0:01:26.2]}
19... Qxc4 {[%clk 0:00:11.4]} 20. Bb3 {[%clk 0:01:26.5]} 20... Qd3 {[%clk
0:00:11.3]} 21. Bxe6 {[%clk 0:01:26]} 21... fxe6 {[%clk 0:00:10.4]} 22. Nd4
{[%clk 0:01:18.4]} 22... Qxe3 {[%clk 0:00:08.2]} 23. Rxe3 {[%clk 0:01:19.3]}
23... Bd5 {[%clk 0:00:07.7]} 24. f4 {[%clk 0:01:19.4]} 24... Rc4 {[%clk
0:00:07.7]} 25. Rc1 {[%clk 0:01:14.5]} 25... Rdc8 {[%clk 0:00:06.4]} 26. Rxc4
{[%clk 0:01:07.2]} 26... Rxc4 {[%clk 0:00:07.3]} 27. g3 {[%clk 0:01:07.9]} 27...
Kf8 {[%clk 0:00:07.1]} 28. Kf2 {[%clk 0:01:01.7]} 28... Kf7 {[%clk 0:00:07.1]}
29. Ke2 {[%clk 0:01:01.9]} 29... a6 {[%clk 0:00:05.9]} 30. Kd2 {[%clk
0:01:01.4]} 30... b5 {[%clk 0:00:06.2]} 31. Nc2 {[%clk 0:01:00.8]} 31... Rc7
{[%clk 0:00:04.8]} 32. Bc3 {[%clk 0:00:58.4]} 32... Bc4 {[%clk 0:00:03.9]} 33.
Bb4 {[%clk 0:00:49.7]} 33... Rd7+ {[%clk 0:00:04.5]} 34. Kc1 {[%clk 0:00:47.1]}
34... Ra7 {[%clk 0:00:04.3]} 35. Bc5 {[%clk 0:00:42.6]} 35... Rc7 {[%clk
0:00:04.2]} 36. Bb6 {[%clk 0:00:42.2]} 36... Rc6 {[%clk 0:00:04.3]} 37. Ba5
{[%clk 0:00:41.7]} 37... Rc8 {[%clk 0:00:03.7]} 38. Kb2 {[%clk 0:00:41.4]} 38...
Bh6 {[%clk 0:00:02.6]} 39. h4 {[%clk 0:00:40.6]} 39... Bg7 {[%clk 0:00:02.2]}
40. Rc3 {[%clk 0:00:40.3]} 40... Rd8 {[%clk 0:00:01.8]} 41. Bxd8 {[%clk
0:00:39.3]} 1-0